bitfinex/quotes_BTCUSD_20240905
["timestamp","ask_amount","ask_price","bid_price","bid_amount"]
[1725579849939,0.05322117,56301.0,56298.0,0.001]
[1725579850156,0.001,56300.0,56298.0,0.001]
[1725579850380,0.001,56300.0,56294.0,0.0901]
[1725579850611,0.05322117,56301.0,56294.0,0.0901]
[1725579850820,0.30032,56300.0,56294.0,0.0911]
[1725579851040,0.001,56300.0,56294.0,0.0901]
[1725579851295,0.13004,56299.0,56294.0,0.0901]
[1725579852891,0.209762,56298.0,56294.0,0.0901]
[1725579853111,0.38302,56300.0,56294.0,0.0901]
[1725579853780,0.43624117,56300.0,56294.0,0.0921]
[1725579854006,0.21274,56299.0,56294.0,0.0901]
[1725579854222,0.26596117,56299.0,56294.0,0.0911]
[1725579854439,0.209726,56298.0,56294.0,0.0921]
[1725579854665,0.100612,56299.0,56294.0,0.0921]
[1725579854882,0.05322117,56300.0,56294.0,0.0921]
[1725579855137,0.01860366,56297.0,56295.0,0.0195065]
[1725579856742,0.01860366,56297.0,56295.0,0.0255065]
[1725579857182,0.01860366,56297.0,56296.0,0.0757]
[1725579857846,0.01860366,56297.0,56296.0,0.0952065]
[1725579858970,0.0464461,56297.0,56296.0,1.0972065]
[1725579859415,0.0464461,56297.0,56296.0,1.1012065]
[1725579865146,0.02784244,56297.0,56296.0,1.1012065]
[1725579875252,0.04644575,56297.0,56296.0,1.1012065]
[1725579882762,0.09980243,56297.0,56296.0,1.1012065]
[1725579885158,0.07427671,56297.0,56296.0,1.1012065]
[1725579885424,0.01860331,56297.0,56296.0,1.1012065]
[1725579885902,0.09869445,56297.0,56296.0,1.1012065]
[1725579886130,0.01860331,56297.0,56296.0,1.1012065]
[1725579886404,0.01860331,56297.0,56296.0,1.1916065]
[1725579886405,0.07199539,56297.0,56296.0,1.1916065]
[1725579886834,0.01860331,56297.0,56296.0,1.1916065]
[1725579887950,0.05340012,56298.0,56296.0,1.1916065]
[1725579888597,0.08010018,56301.0,56296.0,1.1916065]
[1725579888801,0.08010018,56301.0,56296.0,1.1896065]
[1725579888802,0.354861,56300.0,56296.0,1.1896065]
[1725579889005,0.354861,56300.0,56296.0,1.1856065]
[1725579889242,0.428638,56301.0,56296.0,1.1856065]
[1725579889466,0.114938,56301.0,56296.0,1.1856065]
[1725579889652,0.02631262,56302.0,56296.0,1.1856065]
[1725579889883,0.114938,56301.0,56296.0,1.1866065]
[1725579890100,0.114938,56301.0,56297.0,0.0728]
[1725579890550,0.114938,56301.0,56298.0,0.01625674]
[1725579890988,0.08010018,56302.0,56298.0,0.01625674]
[1725579891212,0.115938,56301.0,56298.0,0.01625674]
[1725579891438,0.386261,56300.0,56298.0,0.01625674]
[1725579891656,0.220561,56300.0,56298.0,0.01625674]
[1725579891873,0.001,56301.0,56298.0,0.01625674]
[1725579892096,0.112461,56300.0,56298.0,0.01625674]
[1725579892580,0.001,56301.0,56298.0,0.01625674]
[1725579893062,0.001,56300.0,56298.0,0.01625674]
[1725579893290,0.113461,56300.0,56298.0,0.01625674]
[1725579893507,0.001,56300.0,56298.0,0.01625674]
[1725579894162,0.001,56300.0,56298.0,0.01725674]
[1725579894389,0.100816,56301.0,56298.0,0.01725674]
[1725579894611,0.112461,56300.0,56298.0,0.01725674]
[1725579895270,0.112461,56300.0,56298.0,0.01625674]
[1725579895728,0.08012431,56302.0,56298.0,0.01625674]
[1725579895953,0.001,56300.0,56298.0,0.01625674]
[1725579897764,0.001,56300.0,56299.0,0.068]
[1725579898028,0.001,56300.0,56299.0,0.08427599]
[1725579898247,0.08012431,56302.0,56299.0,0.08427599]
[1725579898470,0.129103,56301.0,56300.0,0.0882]
[1725579898658,0.229103,56301.0,56300.0,0.0882]
[1725579898890,0.1,56301.0,56300.0,0.0882]
[1725579899120,0.1,56301.0,56300.0,0.10447599]
[1725579899317,0.1464434,56301.0,56300.0,0.10347599]
[1725579899797,0.2755464,56301.0,56300.0,0.10347599]
[1725579900240,0.1484434,56301.0,56300.0,0.10347599]
[1725579901126,0.12060293,56301.0,56300.0,0.10347599]
[1725579901582,0.82703112,56301.0,56300.0,0.01627599]
[1725579901821,0.85295704,56301.0,56300.0,0.01627599]
[1725579902048,0.01,56299.0,56296.0,1.001632]
[1725579902277,0.13349478,56297.0,56296.0,1.001632]
[1725579902498,0.18432471,56297.0,56296.0,1.001632]
[1725579902723,0.915705,56297.0,56296.0,1.001632]
[1725579903172,0.6331113,56297.0,56296.0,1.001632]
[1725579903427,0.526319,56297.0,56296.0,1.001632]
[1725579903623,0.526319,56297.0,56296.0,1.005632]
[1725579903847,0.526319,56297.0,56296.0,1.01916419]
[1725579904078,0.503319,56297.0,56296.0,1.01916419]
[1725579904337,0.3684638,56297.0,56296.0,1.01916419]
[1725579904557,0.3684638,56297.0,56296.0,1.17536419]
[1725579904558,0.2079188,56297.0,56296.0,1.17536419]
[1725579904777,0.3305198,56297.0,56296.0,1.17536419]
[1725579905219,0.3305198,56297.0,56296.0,1.17736419]
[1725579905443,0.2504446,56297.0,56296.0,1.17736419]
[1725579905666,0.3305198,56297.0,56296.0,1.17736419]
[1725579905895,0.3572369,56297.0,56296.0,1.17136419]
[1725579906135,0.50091763,56297.0,56296.0,1.01516419]
[1725579906372,0.47416298,56297.0,56296.0,1.01716419]
[1725579906600,0.36742285,56297.0,56296.0,1.01716419]
[1725579906900,0.52708318,56297.0,56296.0,1.01716419]
[1725579907069,0.3935884,56297.0,56296.0,1.01716419]
[1725579907977,0.39031272,56297.0,56296.0,1.01716419]
[1725579908231,0.46919947,56297.0,56296.0,1.01716419]
[1725579908725,0.44136622,56297.0,56296.0,1.01716419]
[1725579908927,0.46919972,56297.0,56296.0,1.01716419]
[1725579909173,0.22962022,56297.0,56296.0,1.01716419]
[1725579909406,0.12288987,56297.0,56296.0,1.17476419]
[1725579909638,0.02616555,56297.0,56296.0,1.17476419]
[1725579910118,0.1,56299.0,56296.0,1.17476419]
[1725579910346,0.02607475,56300.0,56298.0,0.177625]
[1725579910594,0.01941893,56301.0,56299.0,0.17114324]
[1725579910867,0.01941893,56301.0,56300.0,0.0733]
[1725579911606,0.01941893,56301.0,56300.0,0.08684324]
[1725579911844,0.01941893,56301.0,56300.0,0.08384324]
[1725579912576,0.01941893,56301.0,56300.0,0.08684324]
[1725579912808,0.01941893,56301.0,56300.0,0.17214324]
[1725579918540,0.04533132,56301.0,56300.0,0.17214324]
[1725579927758,0.84382139,56301.0,56300.0,0.01754324]
[1725579927976,3.03313046,56301.0,56300.0,0.01754324]
[1725579928195,3.54340246,56301.0,56300.0,0.01754324]
[1725579928862,3.54340246,56301.0,56300.0,0.01454324]
[1725579929108,3.54340246,56301.0,56300.0,0.01354324]
[1725579929584,3.54340246,56301.0,56296.0,1.001632]
[1725579929809,3.54340246,56301.0,56300.0,0.01348772]
[1725579929810,0.17833132,56301.0,56300.0,0.01348772]
[1725579930030,0.20616598,56301.0,56300.0,0.001632]
[1725579930455,3.09693098,56301.0,56300.0,0.01511972]
[1725579930699,1.90807598,56301.0,56300.0,0.01511972]
[1725579931191,1.91407098,56301.0,56300.0,0.01511972]
[1725579931438,1.94191318,56301.0,56300.0,0.01511972]
[1725579931929,1.94391318,56301.0,56300.0,0.01511972]
[1725579932381,1.72145818,56301.0,56300.0,0.01511972]
[1725579936275,1.82801523,56301.0,56300.0,0.01511972]
[1725579936529,1.72145818,56301.0,56300.0,0.01511972]
[1725579937729,1.72145818,56301.0,56296.0,1.001632]
[1725579937730,0.03,56297.0,56296.0,1.001632]
[1725579937974,0.03,56297.0,56296.0,0.95808987]
[1725579937975,3.53027508,56297.0,56296.0,0.95808987]
[1725579938200,3.52007266,56297.0,56296.0,0.95808987]
[1725579938446,3.65325999,56297.0,56296.0,0.95808987]
[1725579938924,3.52007266,56297.0,56296.0,0.95808987]
[1725579939593,3.54791856,56297.0,56296.0,0.86491648]
[1725579939594,3.54791856,56297.0,56296.0,0.85491648]
[1725579939826,4.24791856,56297.0,56296.0,0.08330741]
[1725579940061,4.24791856,56297.0,56284.0,0.001632]
[1725579940062,0.51,56286.0,56284.0,0.001632]
[1725579940298,3.972238,56286.0,56284.0,0.001632]
[1725579940796,3.99084581,56286.0,56284.0,0.001632]
[1725579941045,4.01869652,56286.0,56284.0,0.001632]
[1725579942205,4.01869652,56286.0,56272.0,0.00163]
[1725579942206,0.5,56279.0,56272.0,0.00163]
[1725579942207,0.502,56279.0,56272.0,0.00163]
[1725579942455,0.5,56273.0,56272.0,0.00163]
[1725579942693,2.685801,56273.0,56272.0,0.00163]
[1725579942925,2.708801,56273.0,56272.0,0.00163]
[1725579943157,2.808801,56273.0,56272.0,0.00163]
[1725579943441,2.387718,56273.0,56272.0,0.00163]
[1725579943902,2.387718,56273.0,56272.0,0.00463]
[1725579944138,2.024049,56273.0,56272.0,0.00463]
[1725579944397,1.907383,56273.0,56272.0,0.00463]
[1725579945110,1.907383,56273.0,56272.0,0.07913]
[1725579945566,1.638243,56273.0,56272.0,0.17123]
[1725579946522,1.297655,56273.0,56272.0,0.17123]
[1725579949081,0.12564754,56273.0,56272.0,0.17123]
[1725579949325,0.02564754,56273.0,56272.0,0.17123]
[1725579949575,0.12564754,56273.0,56272.0,0.18267258]
[1725579949932,0.1,56273.0,56272.0,0.18267258]
[1725579950572,0.1,56279.0,56274.0,0.1666]
[1725579950744,0.023,56278.0,56275.0,0.01155828]
[1725579950943,0.023,56278.0,56274.0,0.1666]
[1725579951163,1.048318,56277.0,56275.0,0.01155828]
[1725579951391,0.1,56276.0,56275.0,0.344298]
[1725579951604,0.02785334,56278.0,56275.0,0.35585428]
[1725579951815,0.02785334,56278.0,56276.0,0.1666]
[1725579952031,0.02885334,56278.0,56277.0,0.1666]
[1725579952236,0.02885334,56278.0,56277.0,0.17814522]
[1725579952237,0.02785334,56278.0,56277.0,0.17814522]
[1725579953344,0.02885334,56278.0,56277.0,0.17814522]
[1725579953781,0.03085334,56278.0,56277.0,0.17814522]
[1725579954667,0.02985334,56278.0,56277.0,0.17814522]
[1725579954882,0.02785334,56278.0,56277.0,0.17977722]
[1725579955123,0.02785334,56278.0,56277.0,0.35846922]
[1725579955794,0.02785334,56278.0,56277.0,0.71385322]
[1725579956016,0.4726,56290.0,56277.0,0.71385322]
[1725579956017,0.027854,56289.0,56279.0,0.0911]
[1725579956230,0.027854,56289.0,56282.0,0.0683]
[1725579956231,0.408798,56289.0,56282.0,0.0683]
[1725579956510,0.01860636,56287.0,56284.0,0.0683]
[1725579956746,0.01860636,56287.0,56285.0,0.10259801]
[1725579956978,0.01860636,56287.0,56286.0,0.1594]
[1725579957192,0.28904536,56287.0,56286.0,0.1594]
[1725579958303,0.39104536,56287.0,56286.0,0.1594]
[1725579958956,0.06665427,56287.0,56286.0,0.1594]
[1725579959163,0.06665427,56287.0,56286.0,0.17089801]
[1725579959399,0.02160598,56287.0,56286.0,0.17089801]
[1725579959631,0.02160598,56287.0,56286.0,0.1594]
[1725579960075,0.02160598,56287.0,56286.0,0.17089801]
[1725579960578,0.15049998,56287.0,56286.0,0.17089801]
[1725579960818,0.12859998,56287.0,56286.0,0.17089801]
[1725579961039,0.22859998,56287.0,56286.0,0.17089801]
[1725579961472,0.22859998,56287.0,56286.0,0.1594]
[1725579961919,0.22859998,56287.0,56286.0,0.17081687]
[1725579962578,0.12160598,56287.0,56286.0,0.17081687]
[1725579963022,0.02160598,56287.0,56286.0,1.26739715]
[1725579963259,0.02160598,56287.0,56286.0,1.62272515]
[1725579963482,0.01960598,56287.0,56286.0,1.26739715]
[1725579963710,0.02060598,56287.0,56286.0,1.26739715]
[1725579964174,0.01960598,56287.0,56286.0,1.26739715]
[1725579964419,0.001,56287.0,56286.0,1.26739715]
[1725579964641,0.002,56287.0,56286.0,1.62472515]
[1725579965316,0.001,56287.0,56286.0,1.62472515]
[1725579966031,0.01860325,56295.0,56294.0,0.177638]
[1725579966247,0.01860325,56295.0,56294.0,0.337038]
[1725579966463,0.01860325,56295.0,56294.0,0.70367491]
[1725579966685,0.01860325,56295.0,56294.0,1.26721219]
[1725579967558,0.01960325,56295.0,56294.0,1.26821219]
[1725579969125,0.02060325,56295.0,56294.0,1.27421219]
[1725579970250,0.02060325,56295.0,56294.0,0.91893519]
[1725579970468,0.02060325,56295.0,56294.0,1.27421219]
[1725579973176,0.02060325,56295.0,56294.0,0.91893519]
[1725579975194,0.002,56295.0,56294.0,1.27421219]
[1725579975890,0.002,56295.0,56294.0,0.91893519]
[1725579978975,0.002816,56295.0,56294.0,0.91893519]
[1725579980638,0.002816,56295.0,56294.0,0.71067491]
[1725579980856,0.002816,56295.0,56294.0,0.35539791]
[1725579981112,0.002816,56295.0,56294.0,0.71067491]
[1725579982882,0.002816,56295.0,56294.0,0.17775991]
[1725579983111,0.1376,56295.0,56294.0,0.17775991]
[1725579983345,0.002816,56295.0,56294.0,0.17775991]
[1725579987408,0.002816,56295.0,56294.0,0.35539791]
[1725579987644,0.002816,56295.0,56294.0,0.71067491]
[1725579988527,0.002816,56295.0,56294.0,0.35539791]
[1725579988787,0.002816,56295.0,56294.0,0.17775991]
[1725579988992,0.002816,56295.0,56294.0,0.35539791]
[1725579989216,0.002816,56295.0,56294.0,1.77650591]
[1725579989445,0.000816,56301.0,56300.0,0.532858]
[1725579989674,0.000816,56301.0,56300.0,1.97095955]
[1725579989900,0.000816,56301.0,56300.0,1.98219429]
[1725579991472,0.001816,56301.0,56300.0,1.98419429]
[1725579992156,0.002816,56301.0,56300.0,1.99619429]
[1725579992375,0.001816,56301.0,56300.0,1.98419429]
[1725579992610,0.002816,56301.0,56300.0,1.99819429]
[1725579992849,0.001816,56301.0,56300.0,1.99619429]
[1725579993053,0.001816,56301.0,56300.0,2.01019429]
[1725579993224,0.002816,56301.0,56300.0,2.01019429]
[1725579996462,0.002816,56301.0,56300.0,2.36543329]
[1725579996710,0.002816,56301.0,56300.0,2.37543329]
[1725579996939,0.002816,56301.0,56300.0,2.39743329]
[1725579998316,0.002816,56301.0,56300.0,2.39543329]
[1725579998556,0.002816,56301.0,56300.0,2.39743329]
[1725580000718,0.00021439,56310.0,56309.0,1.598323]
[1725580000971,0.00021435,56321.0,56320.0,0.177556]
[1725580001206,0.00021435,56321.0,56320.0,1.408595]
[1725580001431,0.00021435,56321.0,56320.0,1.763708]
[1725580001899,0.00021435,56321.0,56320.0,1.41968316]
[1725580002343,0.00021435,56321.0,56320.0,1.06457016]
[1725580003261,0.00021435,56321.0,56320.0,1.07857016]
[1725580003491,0.00021435,56321.0,56320.0,1.06457016]
[1725580003923,0.00021435,56321.0,56320.0,1.07757016]
[1725580004360,0.00021435,56321.0,56320.0,0.73345716]
[1725580004808,0.00021435,56321.0,56320.0,0.72245716]
[1725580005250,0.00021435,56321.0,56320.0,1.06457016]
[1725580006135,0.00021435,56321.0,56320.0,1.07857016]
[1725580006361,0.00021435,56321.0,56320.0,0.72145716]
[1725580006362,0.00121435,56321.0,56320.0,0.72145716]
[1725580006860,0.00121435,56321.0,56320.0,1.09057016]
[1725580007096,0.00121435,56321.0,56320.0,0.73545716]
[1725580011010,0.00121435,56321.0,56320.0,1.09057016]
[1725580013889,0.00121435,56321.0,56320.0,1.44568316]
[1725580014845,0.00121435,56321.0,56320.0,1.09057016]
[1725580015056,0.00121435,56321.0,56320.0,1.44568316]
[1725580015923,0.00203035,56321.0,56320.0,1.44568316]
[1725580020180,0.00203035,56321.0,56320.0,1.80079616]
[1725580020414,0.00203035,56321.0,56320.0,1.81079616]
[1725580021979,0.00203035,56321.0,56320.0,1.80079616]
[1725580022455,0.00203035,56321.0,56320.0,1.44568316]
[1725580023772,0.00203035,56321.0,56320.0,1.09057016]
[1725580023993,0.00203035,56321.0,56320.0,0.30674416]
[1725580024872,0.00203035,56321.0,56320.0,0.31029493]
[1725580026018,0.00203035,56321.0,56320.0,0.66185716]
[1725580027645,0.00203035,56321.0,56320.0,1.01697016]
[1725580028767,0.00203035,56321.0,56320.0,0.30674416]
[1725580028995,0.00203035,56321.0,56320.0,0.65685716]
[1725580029225,0.00203035,56321.0,56320.0,0.30174416]
[1725580029436,0.00203035,56321.0,56320.0,0.20964416]
[1725580029661,0.00203035,56321.0,56320.0,0.03708816]
[1725580029906,0.34465535,56321.0,56320.0,0.03708816]
[1725580030137,0.00203035,56321.0,56320.0,0.03708816]
[1725580030369,0.00203035,56321.0,56320.0,0.026]
[1725580030611,0.020625,56321.0,56320.0,0.03695457]
[1725580030831,0.132615,56321.0,56320.0,0.03695457]
[1725580031068,0.15863167,56321.0,56320.0,0.03695457]
[1725580031304,0.08255534,56331.0,56320.0,0.03695457]
[1725580031531,0.01859458,56321.0,56320.0,0.026]
[1725580031759,0.023,56330.0,56320.0,0.012]
[1725580031996,0.023,56330.0,56320.0,0.02297061]
[1725580031997,0.01859444,56326.0,56320.0,0.02297061]
[1725580032221,0.001,56321.0,56320.0,0.02197061]
[1725580032711,0.001,56321.0,56320.0,0.01197061]
[1725580032942,0.01859444,56326.0,56320.0,0.01197061]
[1725580032943,0.01859444,56326.0,56320.0,0.01097061]
[1725580033180,0.397574,56325.0,56320.0,0.01197061]
[1725580033645,0.397574,56325.0,56320.0,0.01097061]
[1725580033874,0.957655,56325.0,56315.0,0.0972]
[1725580034105,0.001,56321.0,56320.0,0.011]
[1725580034327,0.001,56321.0,56320.0,0.018]
[1725580035254,0.01859444,56326.0,56320.0,0.01797895]
[1725580035488,0.549585,56325.0,56320.0,0.01797895]
[1725580035756,0.209888,56325.0,56320.0,0.02497895]
[1725580036004,0.01859444,56326.0,56320.0,0.02497895]
[1725580036265,0.01859444,56326.0,56320.0,0.18853495]
[1725580036491,0.01859444,56326.0,56320.0,0.02497895]
[1725580037103,0.01859444,56326.0,56323.0,0.177545]
[1725580037330,0.01859444,56326.0,56323.0,0.0972]
[1725580037910,0.01859444,56326.0,56324.0,0.01097246]
[1725580039018,0.01859444,56326.0,56325.0,0.177541]
[1725580039239,0.01859444,56326.0,56324.0,0.01097246]
[1725580039454,0.01859444,56326.0,56324.0,0.177542]
[1725580039701,0.01859444,56326.0,56325.0,0.01097246]
[1725580040339,0.01859444,56326.0,56325.0,0.18851346]
[1725580040340,0.01940944,56326.0,56325.0,0.18851346]
[1725580040581,0.01940944,56326.0,56325.0,0.19551346]
[1725580040829,0.01940944,56326.0,56325.0,0.55059546]
[1725580041777,0.01940944,56326.0,56325.0,0.91167746]
[1725580044245,0.01940944,56326.0,56325.0,1.64974401]
[1725580045556,0.01940944,56326.0,56325.0,1.44175946]
[1725580048515,0.01940944,56326.0,56325.0,1.08667746]
[1725580049241,0.01940944,56326.0,56325.0,1.44175946]
[1725580049448,0.01940944,56326.0,56325.0,1.64974401]
[1725580053105,0.01940944,56326.0,56325.0,1.64274401]
[1725580053328,0.01940944,56326.0,56325.0,1.63674401]
[1725580053582,0.01940944,56326.0,56325.0,1.64674401]
[1725580053837,0.01940944,56326.0,56325.0,1.65574401]
[1725580054762,0.01440944,56326.0,56325.0,1.65574401]
[1725580055010,0.000815,56326.0,56325.0,1.65574401]
[1725580062223,0.000815,56326.0,56325.0,1.44775946]
[1725580064228,0.000815,56326.0,56325.0,0.02997246]
[1725580064898,0.000815,56326.0,56325.0,0.019]
[1725580065121,0.460323,56326.0,56325.0,0.019]
[1725580065369,0.460323,56326.0,56325.0,0.02063]
[1725580065631,0.160468,56326.0,56325.0,0.02063]
[1725580066778,0.33670352,56326.0,56325.0,0.02063]
[1725580067490,0.36452347,56326.0,56325.0,0.02063]
[1725580067947,0.87452347,56326.0,56325.0,0.02063]
[1725580068246,0.84911769,56326.0,56325.0,0.02063]
[1725580068690,0.84911769,56326.0,56325.0,0.01163]
[1725580068910,0.84911769,56326.0,56325.0,0.00163]
[1725580069146,1.54911769,56326.0,56325.0,0.00163]
[1725580069616,1.65552981,56326.0,56325.0,0.00163]
[1725580069838,1.65552981,56326.0,56325.0,0.00363]
[1725580069839,1.65652981,56326.0,56325.0,0.00363]
[1725580070059,1.65552981,56326.0,56325.0,0.00263]
[1725580070285,1.56450331,56326.0,56325.0,0.00263]
[1725580070525,0.9107023,56326.0,56325.0,0.00363]
[1725580070776,0.90969447,56326.0,56325.0,0.00263]
[1725580071241,0.32989332,56326.0,56325.0,0.00263]
[1725580071468,0.30689332,56326.0,56325.0,0.00263]
[1725580071684,0.279064,56326.0,56325.0,0.00263]
[1725580071912,0.279064,56326.0,56325.0,0.00163]
[1725580072103,0.284064,56326.0,56325.0,0.01269351]
[1725580072365,0.284064,56326.0,56325.0,0.00363]
[1725580072607,0.279064,56326.0,56325.0,0.01069351]
[1725580072841,0.281064,56326.0,56325.0,0.00263]
[1725580073096,0.284064,56326.0,56325.0,0.01269351]
[1725580073330,0.284064,56326.0,56325.0,0.00363]
[1725580073549,0.284064,56326.0,56325.0,0.01269351]
[1725580076192,0.1059926,56331.0,56325.0,0.01269351]
[1725580076193,0.02619145,56331.0,56325.0,0.01269351]
[1725580076435,0.01859457,56326.0,56325.0,0.01269351]
[1725580076667,0.262314,56326.0,56325.0,0.00363]
[1725580076889,0.333656,56326.0,56325.0,0.0127521]
[1725580077123,0.315821,56326.0,56325.0,0.00363]
[1725580077351,0.244621,56326.0,56325.0,0.0117521]
[1725580077608,0.000815,56326.0,56325.0,0.00263]
[1725580077832,0.000815,56326.0,56325.0,0.0117521]
[1725580078050,0.000815,56326.0,56325.0,0.00163]
[1725580078273,0.316636,56326.0,56325.0,0.0107521]
[1725580078549,0.397536,56326.0,56325.0,0.00363]
[1725580078770,0.326336,56326.0,56325.0,0.00363]
[1725580079003,0.326336,56326.0,56325.0,0.00163]
[1725580079219,0.326336,56326.0,56325.0,0.01180586]
[1725580079441,0.326336,56326.0,56325.0,0.00363]
[1725580079695,0.326336,56326.0,56325.0,0.01280586]
[1725580079935,0.326336,56326.0,56325.0,0.00363]
[1725580080167,0.326336,56326.0,56325.0,0.01280586]
[1725580080407,0.326336,56326.0,56325.0,0.00363]
[1725580080649,0.326336,56326.0,56325.0,0.01280586]
[1725580080867,0.326336,56326.0,56325.0,0.00363]
[1725580081086,0.326336,56326.0,56325.0,0.18349741]
[1725580081087,0.100815,56326.0,56325.0,0.18349741]
[1725580081307,0.02738034,56326.0,56325.0,0.17433]
[1725580081527,0.12738034,56326.0,56325.0,0.00363]
[1725580081755,0.12738034,56326.0,56325.0,0.01279741]
[1725580081985,0.12738034,56326.0,56325.0,0.0127994]
[1725580082216,0.15038034,56326.0,56325.0,0.0127994]
[1725580082443,0.15038034,56326.0,56325.0,0.00363]
[1725580082444,0.15238034,56326.0,56325.0,0.00363]
[1725580082670,0.06238034,56326.0,56325.0,0.00363]
[1725580082918,2.95753634,56326.0,56325.0,0.00363]
[1725580083356,2.74834534,56326.0,56325.0,0.00363]
[1725580083599,2.12166,56326.0,56325.0,0.00363]
[1725580083820,1.78778011,56326.0,56325.0,0.00363]
[1725580085699,1.88778011,56326.0,56325.0,0.00363]
[1725580086159,1.97757832,56326.0,56325.0,0.00363]
[1725580086384,1.91778011,56326.0,56325.0,0.00363]
[1725580086607,0.01,56324.0,56323.0,0.00163]
[1725580086835,2.741289,56324.0,56323.0,0.00163]
[1725580087057,2.841289,56324.0,56323.0,0.00163]
[1725580087528,3.56912146,56324.0,56323.0,0.00163]
[1725580087753,0.01,56320.0,56307.0,0.098]
[1725580087974,0.01,56320.0,56306.0,0.52650515]
[1725580087975,2.79107068,56319.0,56306.0,0.52650515]
[1725580088224,2.76807068,56318.0,56303.0,0.0939]
[1725580088440,2.811289,56317.0,56303.0,0.0939]
[1725580088672,0.123,56317.0,56303.0,0.0939]
[1725580088904,2.688289,56316.0,56303.0,0.0939]
[1725580089133,2.49061,56315.0,56303.0,0.0939]
[1725580089349,1.851461,56314.0,56303.0,0.0939]
[1725580089586,1.086668,56313.0,56310.0,0.00363]
[1725580089774,0.921817,56312.0,56310.0,0.00163]
[1725580090016,1.010317,56311.0,56310.0,0.00163]
[1725580090233,1.010317,56311.0,56310.0,0.00563]
[1725580090458,1.010317,56311.0,56310.0,0.00163]
[1725580091396,0.938269,56311.0,56310.0,0.00163]
[1725580091639,0.938269,56311.0,56310.0,0.01063]
[1725580091864,0.961269,56311.0,56310.0,0.01663]
[1725580092303,0.961269,56311.0,56310.0,0.00163]
[1725580092304,0.97986675,56311.0,56310.0,0.00163]
[1725580092522,0.98086675,56311.0,56310.0,0.00163]
[1725580092745,1.01812066,56311.0,56310.0,0.00163]
[1725580094350,1.00812066,56311.0,56310.0,0.00163]
[1725580095255,1.16710791,56311.0,56310.0,0.00163]
[1725580095701,1.18570575,56311.0,56310.0,0.00163]
[1725580095926,1.16270575,56311.0,56310.0,0.00163]
[1725580096150,1.18570575,56311.0,56310.0,0.00163]
[1725580097515,1.00612575,56311.0,56310.0,0.07803]
[1725580097733,0.59540775,56311.0,56310.0,0.17193]
[1725580098389,0.59540775,56311.0,56310.0,0.18129985]
[1725580098613,0.59540775,56311.0,56310.0,0.18329985]
[1725580098859,0.32443675,56311.0,56310.0,0.18329985]
[1725580099075,0.32443675,56311.0,56310.0,0.18129985]
[1725580102426,0.32443675,56311.0,56310.0,0.18329985]
[1725580102681,0.32443675,56311.0,56310.0,0.18129985]
[1725580109765,0.44789475,56311.0,56310.0,0.18129985]
[1725580110296,0.32443675,56311.0,56310.0,0.18129985]
[1725580114348,0.32443675,56311.0,56310.0,0.17193]
[1725580114795,0.48549675,56311.0,56310.0,0.18122674]
[1725580115239,0.48549675,56311.0,56310.0,0.17193]
[1725580115451,0.32443675,56311.0,56310.0,0.17193]
[1725580115690,0.32443675,56311.0,56310.0,0.18122674]
[1725580115898,0.32443675,56311.0,56310.0,0.17193]
[1725580116862,0.32443675,56311.0,56310.0,0.09553]
[1725580116863,1.88401575,56311.0,56310.0,0.09553]
[1725580117082,1.46098575,56311.0,56310.0,0.09553]
[1725580117310,1.48881295,56311.0,56310.0,0.09553]
[1725580117528,1.48881295,56311.0,56310.0,0.00163]
[1725580118164,1.46098575,56311.0,56310.0,0.00163]
[1725580118599,1.32740875,56311.0,56310.0,0.00163]
[1725580120064,0.76319275,56311.0,56310.0,0.00163]
[1725580120291,0.62286468,56311.0,56310.0,0.09883]
[1725580123886,0.62286468,56311.0,56310.0,0.17323]
[1725580124361,0.59503075,56311.0,56310.0,0.18254196]
[1725580125013,0.59503075,56311.0,56310.0,0.17323]
[1725580125257,0.59503075,56311.0,56310.0,0.18254196]
[1725580125707,0.59503075,56311.0,56310.0,0.17323]
[1725580127505,0.62286397,56311.0,56310.0,0.17323]
[1725580128158,0.59503075,56311.0,56310.0,0.17323]
[1725580128349,0.32443675,56311.0,56310.0,0.17323]
[1725580129014,0.32443675,56311.0,56310.0,0.18254327]
[1725580130386,0.22443675,56311.0,56310.0,0.18254327]
[1725580131242,0.43243273,56311.0,56310.0,0.00163]
[1725580131680,0.565756,56311.0,56310.0,0.00163]
[1725580131892,0.53909874,56311.0,56310.0,0.01092454]
[1725580132106,0.33226496,56311.0,56310.0,0.00163]
[1725580132316,1.25111396,56311.0,56310.0,0.00163]
[1725580132532,1.304442,56311.0,56310.0,0.00163]
[1725580132970,1.17111873,56311.0,56310.0,0.00163]
[1725580133216,0.89821541,56311.0,56310.0,0.00163]
[1725580133436,0.79155573,56311.0,56310.0,0.00163]
[1725580133872,0.924879,56311.0,56310.0,0.00163]
[1725580134485,0.79155573,56311.0,56310.0,0.00163]
[1725580134925,0.92489455,56311.0,56310.0,0.00163]
[1725580135165,0.79155573,56311.0,56310.0,0.00163]
[1725580135903,0.92489345,56311.0,56310.0,0.00163]
[1725580136472,0.79155573,56311.0,56310.0,0.00163]
[1725580136695,0.92489541,56311.0,56310.0,0.00163]
[1725580136915,0.79155573,56311.0,56310.0,0.00163]
[1725580137135,0.79155573,56311.0,56305.0,0.08025414]
[1725580137136,0.1776,56306.0,56305.0,0.08025414]
[1725580137366,0.995222,56306.0,56305.0,0.08025414]
[1725580137582,0.9224,56306.0,56305.0,0.08025414]
[1725580138021,1.00239895,56306.0,56305.0,0.08025414]
[1725580138254,0.76921889,56306.0,56305.0,0.08025414]
[1725580138472,0.689221,56306.0,56305.0,0.08025414]
[1725580138697,0.76922496,56306.0,56305.0,0.08025414]
[1725580138917,0.59162496,56306.0,56300.0,0.077]
[1725580139160,0.177616,56301.0,56300.0,0.077]
[1725580139447,0.35341,56301.0,56300.0,0.077]
[1725580140106,0.280024,56301.0,56300.0,0.077]
[1725580140330,0.08001262,56304.0,56300.0,0.003]
[1725580140546,0.177608,56304.0,56303.0,0.1735]
[1725580140790,0.177608,56304.0,56303.0,0.18284372]
[1725580141014,0.277608,56304.0,56303.0,0.18284372]
[1725580142207,0.30393652,56304.0,56303.0,0.18284372]
[1725580142430,0.30393652,56304.0,56303.0,0.18884372]
[1725580143076,0.30393652,56304.0,56303.0,0.19384372]
[1725580143288,0.12632852,56304.0,56303.0,0.19384372]
[1725580143711,0.30393552,56304.0,56303.0,0.19384372]